bitfinex-derivatives/quotes_BNBF0:USTF0_20250221
["timestamp","ask_amount","ask_price","bid_price","bid_amount"]
[1740173837779,0.31099846,643.09,642.37,0.28597604]
[1740173837985,0.31099846,643.09,642.38,0.28597604]
[1740173838185,0.31099846,643.09,642.39,0.28597604]
[1740173838486,0.31099846,643.09,642.4,0.28597604]
[1740173838680,1.61967626,643.68,642.41,0.28597604]
[1740173838884,0.31072305,643.66,642.42,0.28591295]
[1740173839078,0.31072305,643.66,642.39,0.28591295]
[1740173839281,0.31072305,643.66,642.4,0.28591295]
[1740173839487,0.31072305,643.66,642.41,0.28591295]
[1740173839488,1.01197947,643.65,642.41,0.28591295]
[1740173839687,0.3107327,643.64,642.39,0.28591295]
[1740173839887,0.3107327,643.64,642.4,0.28591295]
[1740173840188,0.3107327,643.64,642.38,1.40620362]
[1740173840189,0.3107327,643.64,642.41,0.28591295]
[1740173840384,0.3107327,643.64,641.84,2.70410335]
[1740173840385,0.3107327,643.64,642.44,1.40620362]
[1740173840582,1.253,643.63,642.45,0.28591295]
[1740173840885,0.994,643.62,642.45,0.28591295]
[1740173841083,0.31074719,643.61,642.45,0.28591295]
[1740173842785,0.31074719,643.61,642.52,1.40620362]
[1740173843090,0.31074719,643.61,642.53,0.28591295]
[1740173843287,0.31074719,643.61,642.53,1.31191295]
[1740173843487,0.31074719,643.61,642.53,1.026]
[1740173843684,0.814,643.6,642.54,0.2858598]
[1740173846087,0.31075684,643.59,642.54,0.2858598]
[1740173847288,0.31075684,643.59,642.53,1.026]
[1740173847891,0.31075684,643.59,642.54,0.28588546]
[1740173854593,0.31075684,643.59,642.55,0.28584232]
[1740173854793,0.31075684,643.59,642.54,0.28584232]
[1740173854993,0.31075684,643.59,642.55,0.28584232]
[1740173855190,0.31075684,643.59,642.56,0.28584232]
[1740173855394,0.31075684,643.59,642.54,0.28584232]
[1740173855595,0.31075684,643.59,642.55,0.28584232]
[1740173855795,0.31075684,643.59,642.53,1.026]
[1740173855796,0.31075684,643.59,642.56,0.28584232]
[1740173856095,0.31075684,643.59,642.53,1.026]
[1740173856096,0.31075684,643.59,642.57,0.28584232]
[1740173856297,0.31075684,643.59,642.54,0.28584232]
[1740173856491,0.31075684,643.59,642.55,0.28584232]
[1740173856696,0.31075684,643.59,642.56,0.28584232]
[1740173856892,0.31075684,643.59,642.54,0.28584232]
[1740173857091,0.31075684,643.59,642.55,0.28584232]
[1740173857290,0.31075684,643.59,642.56,0.28584232]
[1740173857495,0.31075684,643.59,642.53,1.026]
[1740173857496,0.31075684,643.59,642.57,0.28584232]
[1740173857698,0.31075684,643.59,642.54,0.28584232]
[1740173857998,0.31075684,643.59,642.55,0.28584232]
[1740173858198,0.31075684,643.59,642.54,0.28584232]
[1740173858399,0.31075684,643.59,642.55,0.28584232]
[1740173858595,0.31075684,643.59,642.54,0.28584232]
[1740173859195,0.31075684,643.59,642.53,1.026]
[1740173859396,0.31075684,643.59,642.54,0.2858934]
[1740173862297,0.31075684,643.59,642.53,1.026]
[1740173862501,0.31075684,643.59,642.61,1.40620362]
[1740173862700,0.31075684,643.59,642.62,0.28588188]
[1740173864007,0.31075684,643.59,642.63,0.28588142]
[1740173864199,0.31075684,643.59,642.64,0.28588142]
[1740173864401,0.31075684,643.59,642.62,0.28588142]
[1740173864599,0.31075684,643.59,642.63,0.28588142]
[1740173864906,0.31075684,643.59,642.64,0.28588142]
[1740173865100,0.31075684,643.59,642.54,0.28588142]
[1740173867209,0.28374739,643.58,642.54,0.28588142]
[1740173867901,2.25734407,643.57,642.54,0.28588142]
[1740173868106,1.01129866,643.57,642.54,0.28588142]
[1740173868308,0.28374543,643.56,642.54,0.28588142]
[1740173868707,1.01129866,643.56,642.55,0.28596036]
[1740173868908,1.01129866,643.56,642.56,0.28596036]
[1740173869109,1.01129866,643.56,642.57,0.28596036]
[1740173869310,0.28374665,643.55,642.58,0.28596036]
[1740173869503,0.28374665,643.55,642.59,0.28596036]
[1740173869705,1.01129866,643.58,642.6,0.28596036]
[1740173869909,1.01129866,643.58,642.53,1.026]
[1740173869910,0.31078582,643.53,642.54,0.28596036]
[1740173870105,0.31078582,643.53,642.53,1.026]
[1740173870106,0.31078582,643.53,642.55,0.28596036]
[1740173870406,0.31078582,643.53,642.56,0.28596036]
[1740173870608,0.31078582,643.53,642.53,1.026]
[1740173870609,0.31078582,643.53,642.57,0.28596036]
[1740173870809,0.31078582,643.53,642.58,0.28596036]
[1740173871010,0.31078582,643.53,642.53,1.026]
[1740173871011,0.31078582,643.53,642.54,0.28596036]
[1740173871210,0.31078582,643.53,642.55,0.28596036]
[1740173871407,0.31078582,643.53,642.56,0.28596036]
[1740173871611,0.31078582,643.53,642.57,0.28596036]
[1740173871807,0.31078582,643.53,642.53,1.026]
[1740173872011,0.31078582,643.53,642.54,0.28594046]
[1740173873313,0.31078582,643.53,642.53,1.026]
[1740173873515,0.31078582,643.53,642.54,0.28594003]
[1740173879517,0.31078582,643.53,642.3,0.28594003]
[1740173879817,0.31078582,643.53,642.31,0.28594003]
[1740173880017,0.31078582,643.53,642.3,0.28594003]
[1740173880218,0.31078582,643.53,642.31,0.28594003]
[1740173880416,0.31078582,643.53,642.32,0.28594003]
[1740173880612,0.31078582,643.53,642.33,0.28594003]
[1740173880817,0.31078582,643.53,642.34,0.28594003]
[1740173881018,0.31078582,643.53,642.35,0.28592833]
[1740173881217,0.31078582,643.53,642.32,0.28592833]
[1740173881417,0.31078582,643.53,642.33,0.28592833]
[1740173881611,0.31078582,643.53,642.32,0.28592833]
[1740173881815,0.31078582,643.53,642.33,0.28592833]
[1740173882017,0.31078582,643.53,642.34,0.28592833]
[1740173882320,0.31078582,643.53,642.35,0.28592833]
[1740173882516,0.31078582,643.53,642.31,2.42720362]
[1740173882517,0.31078582,643.53,642.36,0.28592833]
[1740173882711,0.31078582,643.53,642.37,0.28592833]
[1740173882916,0.31078582,643.53,642.38,0.28592833]
[1740173883112,0.31078582,643.53,642.31,2.42720362]
[1740173883113,0.31078582,643.53,642.39,0.28592833]
[1740173883318,0.31078582,643.53,642.32,0.28592833]
[1740173883513,0.31078582,643.53,642.33,0.28592833]
[1740173883718,0.31078582,643.53,642.34,0.28592833]
[1740173883919,1.0131413,643.52,642.32,0.28592833]
[1740173884220,0.31079548,643.51,642.32,0.28592833]
[1740173884622,0.31079548,643.51,642.32,1.69213195]
[1740173884820,0.31079548,643.51,642.33,0.28592833]
[1740173885715,0.31079548,643.51,642.34,0.28593974]
[1740173885921,0.31079548,643.51,642.35,0.28593974]
[1740173886120,0.31079548,643.51,642.33,0.28593974]
[1740173886321,0.31079548,643.51,642.34,0.28593974]
[1740173886521,0.31079548,643.51,642.33,0.28593974]
[1740173886716,0.31079548,643.51,642.34,0.28593974]
[1740173886914,0.31079548,643.51,642.35,0.28593974]
[1740173887120,0.31079548,643.51,642.36,0.28594078]
[1740173887416,0.31079548,643.51,642.32,0.28594078]
[1740173887619,0.31079548,643.51,642.31,1.021]
[1740173887620,0.31079548,643.51,642.33,0.28594078]
[1740173887818,0.31079548,643.51,642.34,0.28594078]
[1740173888015,0.31079548,643.51,642.35,0.28594078]
[1740173888213,0.31079548,643.51,642.31,1.021]
[1740173888415,0.31079548,643.51,642.32,0.28594022]
[1740173889924,2.14803657,643.5,642.32,0.28594022]
[1740173890120,1.24903702,643.49,642.32,0.28594022]
[1740173890321,1.24903702,643.48,642.33,0.28597655]
[1740173890522,1.01372215,643.5,642.34,0.28597655]
[1740173890721,3.16178841,643.49,642.32,0.28597655]
[1740173890922,1.53281912,643.48,642.33,0.28597655]
[1740173891125,0.3108148,643.47,642.34,0.28597655]
[1740173891323,1.32453695,643.47,642.32,0.28597655]
[1740173891527,1.32453695,643.47,642.31,1.021]
[1740173891528,2.47653695,643.47,642.33,0.28597655]
[1740173891819,2.47653695,643.47,642.34,0.28597655]
[1740173892025,2.47653695,643.47,642.35,0.28597655]
[1740173892218,2.47653695,643.47,642.36,0.28597655]
[1740173892419,2.47653695,643.47,642.31,1.021]
[1740173892420,2.47653695,643.47,642.52,1.40620362]
[1740173892618,1.4628148,643.47,642.53,0.28597655]
[1740173893324,1.4628148,643.47,642.52,1.40620362]
[1740173893624,1.4628148,643.47,642.53,0.28594122]
[1740173894325,1.4628148,643.47,642.54,0.28594122]
[1740173894519,1.4628148,643.47,642.5,0.28594122]
[1740173894722,1.4628148,643.47,642.49,1.40620362]
[1740173894723,1.4628148,643.47,642.51,0.28594122]
[1740173895025,1.4628148,643.47,642.52,0.28593582]
[1740173895325,1.4628148,643.47,642.53,0.28593582]
[1740173895625,1.4628148,643.47,642.54,0.28593582]
[1740173895825,1.4628148,643.47,642.51,0.28593582]
[1740173896026,1.4628148,643.47,642.52,0.28593582]
[1740173896231,1.4628148,643.47,642.51,0.28593582]
[1740173896527,1.4628148,643.47,642.52,0.28597678]
[1740173896820,1.4628148,643.47,642.53,0.28597678]
[1740173896821,1.01250107,643.46,642.53,0.28597678]
[1740173897029,1.01250107,643.46,642.54,0.28597678]
[1740173897227,0.31082446,643.45,642.55,0.28597678]
[1740173897526,0.31082446,643.45,642.56,0.28597678]
[1740173897727,1.01250107,643.44,642.57,0.28597678]
[1740173897922,1.01250107,643.44,642.43,0.28597678]
[1740173898224,1.01250107,643.44,642.44,0.28597678]
[1740173898526,1.01250107,643.43,642.45,0.28597678]
[1740173898726,1.01250107,643.43,642.46,0.28597678]
[1740173898926,1.01250107,643.43,642.47,0.28597678]
[1740173899124,2.14854222,643.42,642.43,0.28597678]
[1740173899328,2.14854222,643.41,642.42,1.40620362]
[1740173899522,2.14825343,643.4,642.43,1.69223518]
[1740173899722,2.14825343,643.39,642.43,1.40620362]
[1740173899924,0.31086311,643.37,642.43,1.40620362]
[1740173900124,1.24904148,643.36,642.43,1.40620362]
[1740173900627,1.24904148,643.36,642.44,0.28603661]
[1740173900628,1.01250107,643.36,642.44,0.28603661]
[1740173901325,0.3108776,643.34,642.44,0.28603661]
[1740173902228,1.01250107,643.33,642.45,0.28603661]
[1740173902427,0.31088727,643.32,642.32,0.28604281]
[1740173902622,0.31088727,643.32,642.31,1.021]
[1740173902826,0.31088727,643.32,642.32,0.2860424]
[1740173905922,0.31088727,643.32,642.31,1.021]
[1740173905923,0.31088727,643.32,642.33,0.28604438]
[1740173906228,0.31088727,643.32,642.34,0.28604438]
[1740173906423,0.31088727,643.32,642.35,0.28604438]
[1740173906625,1.247476,643.31,642.31,1.021]
[1740173906825,0.31088727,643.32,642.31,1.021]
[1740173907726,1.01088433,643.31,642.31,1.021]
[1740173907927,0.31090177,643.29,642.31,1.021]
[1740173908528,1.01088433,643.28,642.31,1.021]
[1740173908723,0.31091627,643.26,642.31,1.021]
[1740173910328,0.31091627,643.26,642.32,0.28607216]
[1740173912123,0.31091627,643.26,642.31,1.021]
[1740173912329,0.31091627,643.26,642.32,0.28607472]
[1740173913030,0.31091627,643.26,642.33,0.28607472]
[1740173913331,0.31091627,643.26,642.34,0.28607472]
[1740173913528,0.31091627,643.26,642.35,0.28607472]
[1740173913724,0.31091627,643.26,641.9,0.28607472]
[1740173913928,0.31091627,643.26,641.91,0.28607472]
[1740173914127,0.31091627,643.26,641.9,0.28607472]
[1740173914329,0.31091627,643.26,641.91,0.28607472]
[1740173914525,0.31091627,643.26,641.33,2.39249922]
[1740173914526,0.31091627,643.26,641.97,1.40620362]
[1740173914825,0.31091627,643.26,641.98,0.28607472]
[1740173916631,0.31091627,643.26,641.99,0.28607472]
[1740173916825,0.31091627,643.26,641.96,0.28607472]
[1740173917034,0.31091627,643.26,641.97,0.28603839]
[1740173917235,0.31091627,643.26,641.98,0.28603839]
[1740173918936,0.31091627,643.26,641.99,1.69224201]
[1740173919235,0.31091627,643.26,642.0,0.28603839]
[1740173919433,0.31091627,643.26,642.01,0.28603839]
[1740173919637,0.31091627,643.26,642.02,0.28603839]
[1740173919830,0.31091627,643.26,642.0,0.28603839]
[1740173920030,0.31091627,643.26,641.99,1.40620362]
[1740173920232,0.31091627,643.26,642.0,0.28601927]
[1740173920432,0.31091627,643.26,642.01,0.28601927]
[1740173920639,0.31091627,643.26,642.02,0.28601927]
[1740173920837,0.31091627,643.26,642.03,0.28601927]
[1740173921037,0.31091627,643.26,642.04,0.28601927]
[1740173921234,0.31091627,643.26,642.05,0.28601927]
[1740173921436,0.31091627,643.26,642.11,1.40620362]
[1740173921837,0.31091627,643.26,642.12,0.28601029]
[1740173923039,0.31091627,643.26,642.15,1.40620362]
[1740173923240,0.31091627,643.26,642.16,0.28601029]
[1740173924135,0.31091627,643.26,642.17,0.28601029]
[1740173924334,0.31091627,643.26,642.18,0.28601029]
[1740173924540,0.31091627,643.26,642.16,0.28601029]
[1740173924741,0.31091627,643.26,642.17,0.28601029]
[1740173925041,0.31091627,643.26,642.18,0.28601029]
[1740173925243,0.31091627,643.26,642.16,0.28601029]
[1740173925437,0.31091627,643.26,642.17,0.28601029]
[1740173925637,0.31091627,643.26,642.16,0.28601029]
[1740173925835,1.09,643.25,642.17,0.28601029]
[1740173926036,1.4009211,643.25,642.25,1.40620362]
[1740173926239,0.31092593,643.24,642.26,0.28601029]
[1740173926439,0.31092593,643.24,642.27,0.28601945]
[1740173926640,0.31092593,643.24,642.28,0.28601945]
[1740173926840,0.31092593,643.24,642.26,0.28601945]
[1740173927137,0.31092593,643.24,642.27,0.28601945]
[1740173927340,0.31092593,643.24,642.28,0.28601945]
[1740173927541,0.31092593,643.24,642.29,0.28601945]
[1740173927841,0.31092593,643.24,642.3,0.28601945]
[1740173928040,0.31092593,643.24,642.31,0.28601586]
[1740173928241,0.31092593,643.24,642.32,0.28601586]
[1740173928436,0.31092593,643.24,642.3,0.28601586]
[1740173929641,0.31092593,643.24,642.3,1.22501586]
[1740173929840,0.31092593,643.24,642.31,0.28601586]
[1740173930042,0.31092593,643.24,642.31,1.69221948]
[1740173930242,0.31092593,643.24,642.32,0.28601586]
[1740173931241,0.31092593,643.24,642.31,1.40620362]
[1740173931441,0.31092593,643.24,642.32,0.28601974]
[1740173932339,0.31092593,643.24,642.34,1.40620362]
[1740173932643,0.31092593,643.24,642.35,0.28601974]
[1740173932842,0.31092593,643.24,642.36,0.2860164]
[1740173933045,0.31092593,643.24,642.35,0.2860164]
[1740173933344,0.31092593,643.24,642.36,0.2860164]
[1740173933539,0.31092593,643.24,642.35,0.2860164]
[1740173933744,0.31092593,643.24,642.34,1.40620362]
[1740173933745,0.31092593,643.24,642.36,0.2860164]
[1740173933946,0.31092593,643.24,642.37,0.2860164]
[1740173934147,0.31092593,643.24,642.38,0.2860164]
[1740173934344,0.31092593,643.24,642.35,0.2860164]
[1740173934644,0.31092593,643.24,642.36,0.2860164]
[1740173934845,0.31092593,643.24,642.35,0.2860164]
[1740173935146,0.31092593,643.24,642.37,1.40620362]
[1740173935340,0.31092593,643.24,642.38,0.2860164]
[1740173937550,0.31092593,643.24,642.43,1.40620362]
[1740173937743,0.31092593,643.24,642.44,0.2860164]
[1740173940047,0.31092593,643.24,642.49,1.40620362]
[1740173940246,0.31092593,643.24,642.5,0.2860164]
[1740173942144,0.31092593,643.24,642.51,0.2859582]
[1740173942345,0.31092593,643.24,642.46,0.2859582]
[1740173942548,0.31092593,643.24,642.47,0.2859582]
[1740173942747,0.31092593,643.24,642.46,0.2859582]
[1740173942947,0.31092593,643.24,642.47,0.2859582]
[1740173943149,0.31092593,643.24,642.45,1.40620362]
[1740173943150,0.31092593,643.24,642.46,0.2859582]
[1740173943352,0.31092593,643.24,642.47,0.2859582]
[1740173943551,0.31092593,643.24,642.46,0.2859582]
[1740173943748,0.31092593,643.24,642.47,0.2859582]
[1740173943946,0.31092593,643.24,642.48,0.2859582]
[1740173944147,0.31092593,643.24,642.49,0.2859582]
[1740173944346,0.31092593,643.24,642.43,1.40620362]
[1740173944347,0.31092593,643.24,642.5,0.2859582]
[1740173944546,0.31092593,643.24,642.43,1.40620362]
[1740173944547,0.31092593,643.24,642.51,0.285965]
[1740173944745,0.31092593,643.24,642.43,1.40620362]
[1740173944746,0.31092593,643.24,642.52,0.285965]
[1740173944950,0.31092593,643.24,642.44,0.285965]
[1740173945154,0.31092593,643.24,642.45,0.285965]
[1740173945350,0.31092593,643.24,642.46,0.28596474]
[1740173945549,0.31092593,643.24,642.47,0.28596474]
[1740173945750,0.31092593,643.24,642.48,0.28596474]
[1740173946055,0.31092593,643.24,642.49,0.28596474]
[1740173946353,0.31092593,643.24,642.5,0.28596474]
[1740173946554,0.31092593,643.24,642.51,0.28596474]
[1740173946749,0.31092593,643.24,642.52,0.28596474]
[1740173946949,0.31092593,643.24,642.35,1.40620362]
[1740173946950,0.31092593,643.24,642.53,0.28596474]
[1740173947151,0.31092593,643.24,642.54,0.28596474]
[1740173947355,0.31092593,643.24,642.36,0.28596474]
[1740173947554,0.31092593,643.24,642.37,0.28596474]
[1740173947754,0.31092593,643.24,642.38,0.28596474]
[1740173947954,0.31092593,643.24,642.39,0.28596474]
[1740173948153,0.31092593,643.24,642.4,0.28596474]
[1740173948460,0.31092593,643.24,642.34,0.28596474]
[1740173948765,0.31092593,643.24,642.35,0.28596474]
[1740173948963,0.31092593,643.24,642.36,0.28596474]
[1740173949163,0.31092593,643.24,642.37,0.28596474]
[1740173949360,0.31092593,643.24,642.38,0.28596474]
[1740173949865,0.31092593,643.24,642.39,0.28596474]
[1740173950060,0.31092593,643.24,642.31,1.40620362]
[1740173950061,0.31092593,643.24,642.4,0.28596474]
[1740173950267,0.31092593,643.24,642.41,0.28596474]
[1740173950467,0.31092593,643.24,642.31,1.40620362]
[1740173950468,1.09,643.25,642.32,0.28596474]
[1740173950664,1.09,643.25,642.33,0.28596474]
[1740173950863,1.09,643.25,642.32,0.28596474]
[1740173951060,1.09,643.25,642.33,0.28596474]
[1740173951260,1.09,643.25,642.31,1.40620362]
[1740173951261,1.09,643.25,642.34,0.28596474]
[1740173951465,1.09,643.25,642.32,0.28596474]
[1740173951665,1.09,643.25,642.33,0.28596474]
[1740173951967,1.09,643.25,642.34,0.28596474]
[1740173953161,1.09,643.25,642.33,1.40620362]
[1740173953465,1.09,643.25,642.34,0.28598792]
[1740173953667,1.09,643.25,642.33,1.40620362]
[1740173954266,1.09,643.25,642.35,1.40620362]
[1740173955262,1.01244852,643.24,642.35,1.40620362]
[1740173956164,1.53740088,643.57,642.35,1.40620362]
[1740173956365,6.64351844,643.56,642.35,1.40620362]
[1740173956567,6.92734696,643.55,641.98,1.40620362]
[1740173956770,6.92734696,643.54,641.99,0.28605762]
[1740173956971,6.92734696,643.53,641.99,0.28605762]
[1740173957171,6.92734696,643.52,641.99,0.28605762]
[1740173957375,6.92734696,643.51,641.99,0.28605762]
[1740173957672,6.92734696,643.5,641.99,0.28605762]
[1740173957873,6.92734696,643.49,641.99,0.28605762]
[1740173958174,6.92734696,643.48,641.99,0.28605762]
[1740173958370,6.92734696,643.47,642.0,0.28605762]
[1740173958570,1.53740088,643.45,641.98,0.28605762]
[1740173958772,6.92734696,643.44,641.99,0.28605762]
[1740173959072,6.92734696,643.44,641.97,1.40620362]
[1740173959073,6.92734696,643.43,642.0,0.28605762]
[1740173959276,6.92734696,643.42,642.0,1.058]
[1740173959473,6.92734696,643.41,642.01,0.28605762]
[1740173959673,6.92741296,643.4,642.02,0.28611074]
[1740173959870,6.92741296,643.39,642.01,0.28611074]
[1740173960070,6.92741296,643.38,642.02,0.28611074]
[1740173960272,6.92751893,643.37,642.03,0.28611074]
[1740173960468,6.92752142,643.36,642.04,0.28611074]
[1740173960669,6.92752142,643.35,642.05,0.28611074]
[1740173960872,6.92752142,643.34,642.06,0.28611074]
[1740173961069,6.92752142,643.33,642.07,0.28611074]
[1740173961270,6.92754564,643.32,642.08,0.28613499]
[1740173961473,6.92754564,643.31,642.01,0.28613499]
[1740173961670,6.92754564,643.3,642.02,0.28613499]
[1740173961975,6.92754564,643.3,642.0,1.058]
[1740173961976,6.46041605,643.29,642.03,0.28613499]
[1740173962178,6.46041605,643.28,642.04,0.28613499]
[1740173962474,6.92373692,643.27,642.05,0.28613499]
[1740173962772,6.63982242,643.26,642.0,1.058]
[1740173962977,6.92376946,643.25,642.01,0.28616332]
[1740173963276,6.45657486,643.24,642.01,0.28616332]
[1740173963477,5.83367533,643.23,642.01,0.28616332]
[1740173963672,5.83367533,643.22,642.01,0.28616332]
[1740173963875,5.83367533,643.21,642.01,0.28616332]
[1740173964076,5.83367533,643.2,642.01,0.28616332]
[1740173964379,5.83284317,643.19,642.01,0.28616332]
[1740173964677,6.9231241,643.18,642.0,1.058]
[1740173964873,6.92291683,643.17,642.0,1.058]
[1740173965173,6.92291683,643.16,642.0,1.058]
[1740173965473,6.92291881,643.15,642.0,1.058]
[1740173965670,6.63898802,643.14,642.0,1.058]
[1740173965875,6.63898802,643.13,642.0,1.058]
[1740173966071,6.9229506,643.12,642.0,1.058]
[1740173966276,6.45277868,643.11,642.0,1.058]
[1740173966473,6.45277868,643.1,642.0,1.058]
[1740173966676,6.45277868,643.09,642.0,1.058]
[1740173966878,5.82978899,643.08,642.0,1.058]
[1740173967077,5.82978899,643.07,642.0,1.058]
[1740173967279,4.41457637,643.06,642.0,1.058]
[1740173967478,4.41457637,643.05,642.0,1.058]
[1740173967679,2.41696317,643.04,642.0,1.058]
[1740173967879,2.41696317,643.03,642.0,1.058]
[1740173968076,2.41696317,643.02,642.0,1.058]
[1740173968277,2.41696317,643.01,642.0,1.058]
[1740173968482,2.41696317,643.0,642.0,1.058]
[1740173968684,1.53245529,642.99,642.0,1.058]
[1740173968884,1.53245529,642.98,642.0,1.058]
[1740173969187,1.53245529,642.97,642.0,1.058]
[1740173969380,1.01252411,642.98,642.0,1.058]
[1740173969581,1.24421374,642.97,642.0,1.058]
[1740173969780,1.01252411,642.98,642.0,1.058]
[1740173969981,2.25673785,642.97,642.0,1.058]
[1740173970182,1.24373188,642.96,642.0,1.058]
[1740173970483,1.01252411,642.97,642.0,1.058]
[1740173970681,1.53740088,643.23,642.0,1.058]
[1740173970881,6.90219756,643.22,642.01,0.2862306]
[1740173971187,6.90219025,643.21,642.02,0.28622327]
[1740173971387,6.90217013,643.2,642.03,0.28622327]
[1740173971587,6.43486588,643.19,642.04,0.28622327]
[1740173971783,6.43486588,643.19,642.0,1.058]
[1740173971784,6.43486588,643.18,642.05,0.28622327]
[1740173971988,5.81176672,643.17,642.06,0.28622327]
[1740173972183,5.81176672,643.16,642.0,1.058]
[1740173972384,5.81176672,643.15,642.0,1.058]
[1740173972585,4.39976282,643.14,642.01,0.28622696]
[1740173972785,4.39976282,643.13,642.01,0.28622696]
[1740173972991,6.43407538,643.12,642.01,0.28622696]
[1740173973191,6.43408852,643.11,642.0,1.058]
[1740173973392,6.43409532,643.1,642.0,1.058]
[1740173973686,1.53740088,643.23,642.0,1.058]
[1740173973687,6.43409831,643.09,642.0,1.058]
[1740173973990,6.43409831,643.08,642.0,1.058]
[1740173974185,6.15009139,643.07,642.0,1.058]
[1740173974391,6.43409831,643.06,642.0,1.058]
[1740173974591,6.43409831,643.05,642.0,1.058]
[1740173974787,3.2427949,643.08,642.0,1.058]
[1740173974788,5.81095806,643.04,642.0,1.058]
[1740173975092,5.81095806,643.03,642.0,1.058]
[1740173975291,5.81095806,643.02,642.0,1.058]
[1740173975493,4.39976282,643.01,642.0,1.058]
[1740173975692,4.39976282,643.0,642.0,1.058]
[1740173975889,4.39976282,642.99,642.0,1.058]
[1740173976086,0.3110565,642.97,642.0,1.058]
[1740173976284,2.41006838,642.96,642.01,0.28627052]
[1740173976494,0.31107101,642.94,642.0,1.058]
[1740173976690,1.52756594,642.93,642.0,1.058]
[1740173976993,3.2427949,642.99,642.0,1.058]
[1740173976994,0.31108553,642.91,642.0,1.058]
[1740173977191,1.52756594,642.9,642.0,1.058]
[1740173977386,0.28406338,642.89,642.0,1.058]
[1740173977588,0.28406338,642.88,642.0,1.058]
[1740173977786,0.28406338,642.9,642.0,1.058]
[1740173977986,1.00758613,642.87,642.0,1.058]
[1740173978192,1.00758613,642.87,642.01,0.28625894]
[1740173978492,0.28404231,642.86,642.01,0.28625894]
[1740173978685,1.00758613,642.87,642.0,1.058]
[1740173978888,0.31108553,642.91,642.01,0.28625871]
[1740173979092,0.28404231,642.9,642.02,0.28625871]
[1740173979287,0.28404231,642.9,642.0,1.058]
[1740173979491,0.31110004,642.88,642.01,0.28625871]
[1740173979692,0.28404231,642.87,642.0,1.058]
[1740173980087,1.00509105,642.86,642.01,0.28626773]
[1740173980289,0.28404231,642.85,642.01,0.28626773]
[1740173980488,0.31112424,642.83,642.01,0.28626773]
[1740173980692,0.31112424,642.83,642.0,1.058]
[1740173981086,0.31112424,642.83,642.01,0.2862578]
[1740173982088,0.31112424,642.83,642.0,1.058]
[1740173982389,0.31112424,642.83,642.01,0.28625821]
[1740173983790,0.31112424,642.83,642.02,0.28623649]
[1740173983989,0.31112424,642.83,642.01,0.28623649]
[1740173987104,0.31112424,642.83,642.0,1.058]
[1740173990298,1.00370444,642.82,642.0,1.058]
[1740173990501,0.31113876,642.8,642.0,1.058]
[1740173991304,1.00370444,642.79,642.0,1.058]
[1740173991606,0.31114844,642.78,642.0,1.058]
[1740173999310,0.31114844,642.78,641.43,1.40620362]
[1740173999511,0.31114844,642.78,641.64,1.40620362]
[1740173999709,0.31114844,642.78,641.65,0.28627248]
[1740174001904,0.31114844,642.78,641.66,0.28627248]
[1740174002106,0.31114844,642.78,641.39,0.28627248]
[1740174002609,0.31114844,642.78,641.4,0.28626834]
[1740174002809,0.31114844,642.78,641.4,1.243]
[1740174003010,0.31114844,642.78,641.41,0.28626834]
[1740174004010,0.31114844,642.78,641.42,0.28626834]
[1740174004216,0.31114844,642.78,641.43,0.28626834]
[1740174004410,0.31114844,642.78,641.44,0.28626834]
[1740174004604,0.31114844,642.78,641.4,1.243]
[1740174004605,0.31114844,642.78,641.45,0.28626834]
[1740174004808,0.31114844,642.78,641.41,0.28626834]
[1740174005008,0.31114844,642.78,641.42,0.28626834]
[1740174005206,0.31114844,642.78,641.41,0.28626834]
[1740174005407,0.31114844,642.78,641.42,0.28626834]
[1740174005608,0.31114844,642.78,641.43,0.28626834]
[1740174005809,0.31114844,642.78,641.63,1.40620362]
[1740174006009,0.31114844,642.78,641.64,0.28626834]
[1740174008210,0.31114844,642.78,641.65,0.28626834]
[1740174008408,0.31114844,642.78,641.63,0.28626834]
[1740174008609,0.31114844,642.78,641.64,0.28626834]
[1740174008809,0.31114844,642.78,641.63,0.28626834]
[1740174009010,0.31114844,642.78,641.64,0.28626834]
[1740174009310,0.31114844,642.78,641.65,0.28626834]
[1740174009516,0.31114844,642.78,641.66,0.28626834]
[1740174009714,0.31114844,642.78,641.63,0.28626834]
[1740174010816,0.31114844,642.78,641.63,1.69247196]
[1740174011111,0.31114844,642.78,641.64,0.28626834]
[1740174012519,0.31114844,642.78,641.79,1.40620362]
[1740174012714,0.31114844,642.78,641.8,0.28626834]
[1740174013916,0.31114844,642.78,641.81,0.28628918]
[1740174014120,0.31114844,642.78,641.82,0.28628918]
[1740174014319,0.31114844,642.78,641.72,0.28628918]
[1740174014518,0.31114844,642.78,641.73,0.28628918]
[1740174014820,0.31114844,642.78,641.74,0.28628918]
[1740174015019,0.31114844,642.78,641.72,0.28628918]
[1740174015215,0.31114844,642.78,641.71,1.40620362]
[1740174015216,2.13347939,642.77,641.71,1.40620362]